bitfinex/quotes_ETHUSD_20260130
["timestamp","ask_amount","ask_price","bid_price","bid_amount"]
[1769797069131,13.4361146,2679.3,2676.5,0.01838202]
[1769797069303,13.4361146,2679.3,2676.7,0.01838202]
[1769797069504,14.36901218,2679.9,2677.2,0.93381144]
[1769797069704,13.4361146,2679.9,2677.3,0.01838202]
[1769797069925,13.4361146,2679.9,2677.5,0.01838202]
[1769797070095,1.34361146,2679.8,2677.7,0.01838202]
[1769797070296,1.34361146,2679.8,2677.7,0.80138202]
[1769797070794,13.4361146,2680.5,2678.4,0.01838202]
[1769797070997,13.4361146,2680.5,2678.5,0.01838202]
[1769797071613,13.4361146,2681.1,2678.9,0.01838202]
[1769797071826,13.4361146,2681.1,2679.1,0.01838202]
[1769797072527,13.45449662,2681.0,2678.8,0.93325369]
[1769797072698,13.45449662,2681.0,2678.3,3.75204235]
[1769797072699,13.4361146,2680.5,2678.0,3.73404054]
[1769797072898,0.01838202,2680.6,2677.8,12.97839785]
[1769797072899,13.45449662,2680.2,2678.1,3.73392165]
[1769797073126,13.4361146,2680.2,2678.2,0.01838202]
[1769797073337,13.4361146,2680.2,2677.4,3.7348373]
[1769797073338,13.45449662,2679.7,2677.4,3.7348373]
[1769797073507,13.45449662,2679.5,2677.6,0.93365276]
[1769797073705,0.01838202,2679.7,2677.6,0.46686152]
[1769797073706,14.78156426,2679.4,2677.6,0.46686152]
[1769797073942,15.7146215,2679.4,2677.2,0.01838202]
[1769797074239,15.7146215,2679.4,2677.0,0.93388121]
[1769797074240,13.45449662,2679.1,2677.0,0.93388121]
[1769797074450,13.4361146,2678.9,2677.0,0.93388121]
[1769797075453,13.4361146,2678.9,2677.0,0.95226323]
[1769797075808,13.4361146,2678.7,2677.0,0.93388121]
[1769797076111,1.34544966,2678.6,2677.0,0.93388121]
[1769797076733,13.45449662,2679.0,2677.0,0.93388121]
[1769797076933,13.4361146,2679.0,2677.0,0.93388121]
[1769797077136,2.27749988,2679.4,2677.2,0.01838202]
[1769797077303,1.34444966,2679.4,2677.2,0.01838202]
[1769797077834,1.34444966,2679.4,2677.7,0.93363707]
[1769797078002,1.34444966,2679.4,2678.0,0.01838202]
[1769797078207,14.36885296,2680.3,2678.0,0.01838202]
[1769797078415,14.36885296,2680.3,2678.2,0.01838202]
[1769797079635,14.87580975,2680.9,2678.6,0.01838202]
[1769797079941,14.87580975,2680.9,2678.4,0.01838202]
[1769797079942,13.45449662,2680.8,2678.9,0.93321885]
[1769797080145,1.58267175,2680.7,2678.9,0.93321885]
[1769797080514,15.01878635,2680.7,2678.8,0.93324402]
[1769797080717,13.4361146,2680.3,2678.0,3.75241373]
[1769797081046,13.45449662,2679.6,2678.0,0.9335098]
[1769797081332,14.2191146,2680.2,2678.7,0.93328496]
[1769797081507,1.42191146,2680.1,2678.7,0.93328496]
[1769797081708,0.93283582,2680.0,2678.1,0.01838202]
[1769797081934,14.85802606,2680.1,2678.2,0.93346277]
[1769797082437,14.85802606,2680.1,2678.3,0.01838202]
[1769797082761,2.35471344,2680.1,2678.2,0.93346277]
[1769797083037,13.4361146,2678.9,2677.2,0.002]
[1769797083240,13.45449662,2678.2,2677.2,0.002]
[1769797083448,13.45449662,2678.0,2677.0,0.001]
[1769797083614,13.4361146,2678.0,2676.4,0.93408862]
[1769797083814,1.34361146,2677.9,2676.0,3.73688469]
[1769797084025,1.34361146,2677.9,2676.0,0.01838202]
[1769797084746,1.34361146,2677.9,2676.4,0.02241357]
[1769797084960,0.93335822,2678.5,2676.4,0.02241357]
[1769797085412,14.24152817,2678.6,2676.4,0.02241357]
[1769797085608,0.93335822,2678.5,2676.4,0.02241357]
[1769797085809,13.45852817,2677.8,2675.9,0.002]
[1769797086009,14.78196742,2677.7,2675.9,0.002]
[1769797086215,13.45852817,2677.3,2675.9,0.002]
[1769797086433,12.9227936,2677.0,2675.9,0.001]
[1769797086845,12.9227936,2676.7,2674.6,0.01838202]
[1769797087053,0.02241357,2676.6,2674.8,0.93463853]
[1769797087260,1.29452072,2676.5,2674.9,0.46733679]
[1769797087564,1.29452072,2676.5,2675.2,0.93448716]
[1769797087723,1.29452072,2676.5,2674.6,3.73884549]
[1769797087724,14.21731432,2676.5,2674.6,3.73884549]
[1769797087928,12.94520717,2676.3,2674.2,3.73934925]
[1769797088128,12.9227936,2676.3,2674.2,3.76176282]
[1769797088349,1.29452072,2676.5,2674.4,0.02241357]
[1769797088534,12.9227936,2676.9,2674.6,0.02241357]
[1769797088739,13.85672793,2676.9,2674.6,0.02241357]
[1769797088948,12.9227936,2676.9,2674.6,0.02241357]
[1769797089329,12.94520717,2676.3,2674.4,0.37841764]
[1769797089562,1.31693429,2676.2,2674.4,0.37841764]
[1769797089761,1.29452072,2676.2,2674.4,0.37841764]
[1769797089979,12.9227936,2676.9,2674.5,0.95716772]
[1769797090278,12.94520717,2677.4,2675.2,0.02241357]
[1769797090423,12.94520717,2676.8,2674.5,0.95716772]
[1769797090619,12.9237936,2676.8,2674.5,0.95716772]
[1769797090821,12.9227936,2676.4,2674.5,0.93475415]
[1769797091045,14.21731432,2676.3,2674.6,0.50521884]
[1769797091255,1.29452072,2676.3,2674.6,0.52763241]
[1769797091560,0.001,2676.8,2674.6,0.52763241]
[1769797091561,12.9227936,2676.4,2674.6,0.50521884]
[1769797091762,12.9227936,2676.2,2674.6,0.50521884]
[1769797091940,12.9227936,2676.0,2674.1,0.93489398]
[1769797092276,12.9227936,2676.6,2674.3,0.02241357]
[1769797092574,12.94520717,2676.5,2674.1,0.95730755]
[1769797092866,12.9227936,2676.5,2674.3,0.02241357]
[1769797093068,1.29227936,2676.4,2674.5,0.02241357]
[1769797093224,1.29227936,2676.4,2674.4,0.02241357]
[1769797093427,1.31469293,2676.4,2674.4,0.02241357]
[1769797093631,1.31469293,2676.4,2674.1,0.95730755]
[1769797093864,0.02241357,2676.2,2674.1,0.93489398]
[1769797094090,1.51939924,2676.2,2674.3,13.33676788]
[1769797094385,0.001,2676.8,2675.3,0.02241357]
[1769797094585,0.001,2676.8,2675.3,0.80541357]
[1769797095511,0.001,2676.8,2675.5,0.02241357]
[1769797095853,0.001,2676.8,2675.4,0.9344397]
[1769797096152,0.001,2676.8,2675.5,0.54551985]
[1769797096347,12.9227936,2678.4,2675.9,0.02241357]
[1769797096651,12.9227936,2678.1,2675.9,0.02241357]
[1769797096850,0.02241357,2678.5,2675.9,13.33676788]
[1769797097076,12.9227936,2679.3,2676.8,0.02241357]
[1769797097250,1.29227936,2679.2,2677.2,0.02241357]
[1769797097467,1.29227936,2679.2,2676.8,1.35833171]
[1769797097468,12.94520717,2678.8,2676.8,1.35833171]
[1769797097660,12.9227936,2678.8,2676.6,0.02241357]
[1769797097886,12.9227936,2678.8,2677.0,0.93388121]
[1769797098208,2.24781188,2679.2,2677.0,0.93388121]
[1769797098363,0.02241357,2678.9,2677.0,0.93388121]
[1769797098567,0.02241357,2679.1,2677.0,0.93388121]
[1769797099010,13.8559129,2679.2,2677.0,0.93388121]
[1769797099308,12.9227936,2679.2,2677.0,0.93388121]
[1769797099678,13.85591225,2679.2,2677.0,0.93388121]
[1769797099885,1.38783258,2679.1,2677.1,0.46694061]
[1769797100092,0.02241357,2678.9,2677.2,0.93381144]
[1769797101200,14.31062618,2679.1,2677.2,0.93381144]
[1769797101514,0.02241357,2678.4,2677.1,0.46694061]
[1769797101685,12.94520717,2677.6,2675.5,0.54551985]
[1769797101874,0.02241357,2677.2,2675.7,0.93433479]
[1769797102073,0.93375636,2677.4,2675.2,0.02241357]
[1769797102308,0.93371844,2677.5,2675.2,0.02241357]
[1769797102509,12.9227936,2676.8,2675.0,0.93456784]
[1769797102805,12.9227936,2677.4,2675.3,0.02241357]
[1769797103307,0.02241357,2677.3,2675.3,0.02241357]
[1769797103507,12.9227936,2677.4,2675.3,0.02241357]
[1769797103906,0.02241357,2677.3,2675.3,0.02241357]
[1769797104105,0.93381144,2677.2,2675.4,0.9344397]
[1769797104404,0.02241357,2676.9,2675.4,0.9344397]
[1769797104605,12.94520717,2676.7,2675.1,1.40181348]
[1769797104817,12.94520717,2676.7,2674.1,17.07625177]
[1769797104818,12.9227936,2676.2,2673.5,13.31435431]
[1769797105016,0.02241357,2675.8,2673.5,14.09735431]
[1769797105175,0.02241357,2676.3,2674.0,3.7456679]
[1769797105379,12.9227936,2676.6,2675.3,0.93447304]
[1769797105584,12.9227936,2676.6,2675.2,0.93449381]
[1769797105782,12.9227936,2677.2,2675.3,0.93446894]
[1769797106107,12.9227936,2677.2,2675.2,3.73789855]
[1769797106108,0.02241357,2676.9,2675.4,0.46723675]
[1769797106308,0.02241357,2676.5,2674.7,3.73866673]
[1769797106477,12.94520717,2676.3,2674.7,0.93465908]
[1769797106679,0.02241357,2676.1,2674.6,0.93470041]
[1769797106880,0.02241357,2676.1,2674.7,0.93468273]
[1769797107098,12.94520717,2676.3,2674.9,0.93458909]
[1769797107408,0.02241357,2676.9,2675.4,0.93442747]
[1769797107409,12.94520717,2676.9,2675.4,0.93442747]
[1769797107707,12.94520717,2676.9,2674.4,3.73910767]
[1769797107708,0.02241357,2676.8,2674.5,0.02241357]
[1769797107917,0.02241357,2676.6,2674.3,0.02241357]
[1769797108091,0.02241357,2676.4,2674.4,0.93478911]
[1769797108276,13.87923806,2676.6,2674.4,0.93478911]
[1769797108476,1.38792381,2676.5,2674.5,0.46963591]
[1769797108698,0.02241357,2676.3,2674.5,0.46963591]
[1769797108904,1.41033738,2676.5,2674.5,0.46963591]
[1769797109122,12.94520717,2676.3,2674.5,0.46963591]
[1769797109307,0.02241357,2676.1,2674.5,0.46963591]
[1769797109490,1.31917564,2676.1,2674.5,0.46963591]
[1769797109688,14.24196924,2676.1,2674.3,0.93480871]
[1769797109889,14.24196924,2676.1,2673.1,0.00213166]
[1769797109890,12.9227936,2675.1,2673.4,3.74051662]
[1769797110098,0.02241357,2674.7,2673.2,6.46039199]
[1769797110294,0.02241357,2674.7,2673.3,0.93517375]
[1769797110513,0.02241357,2674.5,2673.2,3.65488857]
[1769797110811,12.94520717,2674.2,2673.2,2.71543365]
[1769797111022,12.94520717,2674.2,2672.2,3.74213158]
[1769797111023,12.9227936,2673.2,2668.4,0.04069357]
[1769797111186,7.146824,2669.9,2669.0,0.8549917]
[1769797111386,0.19415563,2670.0,2667.7,0.93713469]
[1769797111387,12.9227936,2669.6,2667.7,0.93713469]
[1769797111591,0.02241357,2668.3,2667.6,0.53087098]
[1769797111794,0.02241357,2668.5,2666.5,0.11447617]
[1769797111795,0.54954473,2668.5,2666.5,0.11447617]
[1769797111999,0.02241357,2668.3,2666.8,3.74970192]
[1769797112195,0.2335703,2668.9,2666.8,0.93745312]
[1769797112487,3.50471197,2669.5,2667.1,13.33676788]
[1769797112488,1.99288567,2669.5,2667.1,13.33676788]
[1769797112710,0.02241357,2670.1,2666.7,1.47763262]
[1769797112711,0.02241357,2669.2,2666.7,1.47763262]
[1769797112941,0.02241357,2667.9,2665.7,0.0188731]
[1769797113114,0.02241357,2668.2,2666.7,0.93747008]
[1769797113322,0.02241357,2667.7,2665.9,13.31435431]
[1769797113615,0.02241357,2667.7,2664.3,13.31435431]
[1769797113616,0.02241357,2665.8,2664.3,13.31435431]
[1769797113839,0.02241357,2665.1,2663.6,13.31435431]
[1769797114015,0.02241357,2665.2,2663.5,0.0297113]
[1769797114220,0.02241357,2665.9,2663.5,0.0297113]
[1769797114221,7.204866,2665.9,2663.6,0.93857936]
[1769797114431,7.204866,2665.9,2663.5,0.0297113]
[1769797114432,0.02241357,2664.3,2663.5,0.96831813]
[1769797114639,0.02241357,2664.5,2662.0,2.82438017]
[1769797114640,12.9227936,2663.7,2662.0,0.83128249]
[1769797114940,0.02241357,2664.1,2662.2,0.93907294]
[1769797115126,0.21704072,2664.8,2663.1,0.02241357]
[1769797115127,0.19462715,2664.8,2663.1,0.02241357]
[1769797115326,0.19462715,2664.8,2662.2,14.27584082]
[1769797115327,0.19462715,2664.8,2662.5,0.02241357]
[1769797115528,0.19462715,2664.8,2662.6,13.23676788]
[1769797115858,0.09553262,2664.8,2663.7,13.33676788]
[1769797116023,0.02241357,2667.6,2664.9,0.02241357]
[1769797116230,6.55204938,2669.2,2664.9,0.02241357]
[1769797116231,0.02241357,2669.1,2666.8,0.02241357]
[1769797116561,0.02241357,2669.1,2666.0,0.02241357]
[1769797116562,0.02241357,2667.0,2665.4,3.75164134]
[1769797116765,0.02241357,2667.0,2664.8,13.8616642]
[1769797116766,0.02241357,2665.6,2664.8,13.8616642]
[1769797116912,1.16193953,2666.9,2665.4,0.93793562]
[1769797117115,0.19455964,2668.2,2665.7,0.02241357]
[1769797117312,0.02241357,2668.3,2665.8,0.02241357]
[1769797117631,0.02241357,2668.7,2666.2,13.97100312]
[1769797117844,0.02241357,2669.4,2666.7,0.02241357]
[1769797118010,0.02241357,2669.1,2666.7,0.02241357]
[1769797118210,0.02241357,2669.1,2666.6,0.93752343]
[1769797118515,0.02241357,2668.8,2666.6,0.93752343]
[1769797118716,23.73594857,2669.8,2667.2,0.02241357]
[1769797118935,0.02241357,2669.2,2666.8,0.02241357]
[1769797119121,0.02241357,2668.8,2666.2,0.02241357]
[1769797119315,0.02241357,2669.2,2666.5,0.95995813]
[1769797119316,0.02241357,2669.0,2666.5,0.95995813]
[1769797119517,0.02241357,2669.8,2667.1,0.02241357]
[1769797119518,0.12481357,2669.8,2667.1,0.02241357]
[1769797119740,0.02241357,2670.0,2667.3,0.02241357]
[1769797119961,23.713535,2669.7,2667.3,0.02241357]
[1769797120165,0.9364348,2669.7,2667.7,0.02241357]
[1769797120460,23.713535,2669.7,2667.4,0.02241357]
[1769797120810,2.37359486,2669.9,2668.1,0.02241357]
[1769797121009,0.02241357,2669.6,2667.5,0.02241357]
[1769797121329,0.02241357,2669.6,2666.0,0.02241357]
[1769797121330,0.02241357,2669.0,2667.1,13.94858955]
[1769797121528,0.02241357,2668.8,2666.3,13.97100312]
[1769797121833,0.02241357,2669.6,2666.3,13.97100312]
[1769797121834,0.02241357,2670.3,2667.7,0.93711752]
[1769797122009,0.02241357,2670.0,2667.3,0.02241357]
[1769797122341,0.93642239,2669.8,2667.5,0.93720712]
[1769797122636,0.4704434,2669.7,2667.5,1.40805204]
[1769797122838,0.02241357,2669.4,2667.5,0.47084492]
[1769797123041,0.02241357,2669.4,2666.4,0.9375753]
[1769797123042,0.02241357,2668.6,2666.4,0.9375753]
[1769797123340,0.02241357,2668.6,2666.3,0.02241357]
[1769797123642,0.02241357,2669.0,2666.7,0.02241357]
[1769797123940,0.02241357,2669.0,2667.0,0.93735475]
[1769797124165,0.9366804,2669.0,2666.7,0.02241357]
[1769797124352,0.47057333,2668.9,2667.2,0.93729607]
[1769797124647,0.95889947,2669.6,2667.3,0.02241357]
[1769797124853,0.02241357,2668.9,2666.8,0.93744243]
[1769797125151,0.02241357,2668.7,2666.8,0.93744343]
[1769797125471,0.02241357,2667.1,2664.2,13.76432783]
[1769797125652,0.02241357,2666.3,2664.3,5.12967149]
[1769797125962,0.02241357,2667.9,2664.9,13.94858955]
[1769797126266,0.02241357,2668.7,2666.3,13.97100312]
[1769797126467,2.634109,2669.2,2666.7,0.02241357]
[1769797126638,0.02241357,2668.6,2666.3,13.97100312]
[1769797127039,0.02341357,2668.8,2666.3,13.97100312]
[1769797127040,0.001,2668.8,2666.4,0.02241357]
[1769797127238,0.001,2668.8,2666.8,0.02241357]
[1769797127434,0.001,2668.8,2667.0,13.97100312]
[1769797127655,0.001,2668.8,2667.0,13.94858955]
[1769797127975,0.001,2668.8,2667.1,1.41727253]
[1769797128167,0.001,2668.8,2667.2,0.93731253]
[1769797128371,0.001,2668.8,2667.1,1.39485896]
[1769797128372,0.001,2668.8,2667.1,16.30319585]
[1769797128581,0.001,2668.8,2667.1,15.34344851]
[1769797128738,0.02241357,2668.7,2666.8,0.93742781]
[1769797128935,0.001,2668.8,2666.6,0.02241357]
[1769797129137,0.02241357,2668.7,2666.8,0.93744301]
[1769797129366,0.02241357,2668.7,2666.8,0.47099294]
[1769797129565,0.001,2668.8,2666.5,3.75011347]
[1769797129566,0.02241357,2668.6,2666.5,3.75011347]
[1769797129764,0.02241357,2668.6,2666.9,0.93739467]
[1769797129984,0.001,2668.8,2666.5,3.77261177]
[1769797130144,0.9367857,2668.7,2666.6,3.75008623]
[1769797130343,0.001,2668.8,2666.7,0.02241357]
[1769797130547,0.02241357,2667.7,2665.8,0.93778223]
[1769797130759,0.02241357,2668.6,2666.5,0.93755495]
[1769797130956,1.33719458,2668.8,2666.2,13.94858955]
[1769797130957,0.02241357,2668.5,2666.2,13.94858955]
[1769797131160,0.02241357,2666.5,2665.4,13.94858955]
[1769797131445,0.05272963,2666.2,2665.4,15.34344851]
[1769797131684,0.02241357,2667.0,2665.4,16.28138743]
[1769797131978,0.02241357,2666.6,2664.9,0.785]
[1769797132146,0.02241357,2666.5,2665.0,0.93807885]
[1769797132337,0.02241357,2666.8,2665.0,0.93807885]
[1769797132540,0.02241357,2666.7,2664.9,0.785]
[1769797132738,0.02241357,2666.7,2664.9,1.72311202]
[1769797132971,0.02241357,2666.6,2664.9,2.27069344]
[1769797133656,0.02241357,2666.8,2664.9,2.27069344]
[1769797134363,0.02241357,2667.0,2664.9,16.21928299]
[1769797134762,0.02241357,2667.3,2664.9,16.21928299]
[1769797134982,0.02241357,2667.1,2664.9,16.21928299]
[1769797135170,0.02241357,2667.4,2665.1,13.94858955]
[1769797135348,0.02241357,2667.6,2665.1,13.94858955]
[1769797135680,0.02241357,2667.4,2665.3,13.98970549]
[1769797135845,0.9367857,2668.7,2665.6,13.97100312]
[1769797136041,0.02241357,2668.4,2665.9,13.94858955]
[1769797136278,0.02241357,2668.4,2666.1,13.94858955]
[1769797136279,0.02241357,2668.2,2666.1,13.94858955]
[1769797136464,1.33718723,2668.8,2666.4,13.94858955]
[1769797136783,0.02241357,2668.4,2666.5,0.786]
[1769797137078,0.02241357,2668.6,2666.5,14.73458955]
[1769797137252,0.37801703,2668.8,2666.6,13.97100312]
[1769797137453,0.02241357,2668.6,2666.7,15.42428986]
[1769797138453,0.93691569,2668.4,2666.6,0.93752343]
[1769797138657,0.001,2667.1,2666.6,0.93752343]
[1769797138871,0.93687673,2668.5,2666.6,0.93752343]
[1769797139070,0.93527673,2668.5,2666.6,0.93752343]
[1769797139272,0.93685246,2668.6,2666.6,0.93752343]
[1769797139475,0.95921256,2668.7,2666.7,0.54960308]
[1769797139651,0.93679899,2668.7,2666.7,0.54960308]
[1769797140258,0.001,2668.8,2667.1,0.02241357]
[1769797140502,0.001,2668.8,2666.9,0.02241357]
[1769797140646,0.001,2668.8,2666.3,6.57060616]
[1769797140647,0.02241357,2668.7,2666.2,3.75058816]
[1769797140963,0.02241357,2668.5,2666.5,0.93754979]
[1769797141157,0.02241357,2668.7,2666.9,0.93739677]
[1769797141375,0.001,2668.8,2667.3,0.93727071]
[1769797141582,0.001,2668.8,2667.4,0.02241357]
[1769797141785,0.001,2668.8,2667.8,0.02241357]
[1769797141987,0.93601407,2670.9,2668.4,0.02241357]
[1769797142194,1.7812457,2670.8,2668.4,0.02241357]
[1769797142394,0.02241357,2670.7,2668.6,0.02241357]
[1769797142610,0.93604912,2670.8,2668.7,1.7227857]
[1769797143155,0.93600324,2671.0,2668.8,0.02241357]
[1769797143365,0.93589826,2671.3,2669.0,0.02241357]
[1769797143613,0.02241357,2671.9,2669.4,13.97100312]
[1769797143614,0.93568025,2671.9,2669.4,13.97100312]
[1769797143762,0.02241357,2671.8,2669.5,1.39710031]
[1769797143960,13.13245391,2673.1,2669.8,13.97100312]
[1769797144154,0.02241357,2672.8,2670.4,0.02241357]
[1769797144378,0.95769228,2673.0,2670.6,0.02241357]
[1769797144693,0.95769228,2673.0,2669.3,0.02241357]
[1769797144694,0.02241357,2672.2,2669.3,0.02241357]
[1769797144990,0.02241357,2672.1,2670.2,0.93622742]
[1769797145158,0.02241357,2672.4,2670.1,0.02241357]
[1769797145352,0.02241357,2672.4,2670.6,0.93611681]
[1769797145567,0.02241357,2672.4,2670.1,0.02241357]
[1769797145766,0.02241357,2671.7,2669.1,0.93662377]
[1769797145977,0.02241357,2671.0,2668.9,14.88529775]
[1769797146257,0.02241357,2671.7,2669.7,0.93641857]
[1769797146567,0.02241357,2671.7,2666.3,9.98963853]
[1769797146568,9.403024,2669.0,2666.3,9.98963853]
[1769797146764,9.403024,2669.0,2665.2,0.02241357]
[1769797146765,13.01870744,2669.5,2665.1,0.785]
[1769797146969,0.19584486,2668.9,2665.2,13.57056397]
[1769797147313,20.611392,2669.2,2665.9,3.102143]
[1769797147314,13.01870744,2668.5,2665.9,3.102143]
[1769797147455,17.41952544,2669.2,2666.3,3.102143]
[1769797147659,0.19584339,2669.0,2667.0,0.01499784]
[1769797147903,13.01870744,2669.2,2667.2,0.01499784]
[1769797148102,13.01870744,2669.2,2667.4,0.01499784]
[1769797148302,4.615192,2669.1,2667.0,0.01499784]
[1769797148511,2.876634,2669.1,2666.8,0.01499784]
[1769797148695,2.52621454,2669.0,2667.2,0.01499784]
[1769797148900,3.117181,2668.9,2667.0,0.01499784]
[1769797149067,3.079512,2668.9,2667.0,0.01499784]
[1769797149267,2.52621454,2669.0,2667.0,0.01499784]
[1769797149490,2.152024,2668.9,2666.3,0.01499784]
[1769797149792,2.52621454,2669.0,2666.7,0.01499784]
[1769797149793,0.46782385,2668.8,2666.7,0.01499784]
[1769797150171,0.46782385,2668.8,2666.8,0.01499784]
[1769797150371,0.46782385,2668.8,2666.6,0.01499784]
[1769797150597,0.9367857,2668.7,2666.6,0.01499784]
[1769797150906,0.46782385,2668.8,2667.4,0.01499784]
[1769797151281,0.93654004,2669.4,2667.4,0.01499784]
[1769797151598,3.650741,2669.3,2667.3,0.01499784]
[1769797151799,0.93654004,2669.4,2667.3,0.01499784]
[1769797152098,0.93654004,2669.4,2667.0,0.01499784]
[1769797152482,4.707262,2669.3,2667.0,0.01499784]
[1769797152664,4.707262,2669.3,2667.2,0.01499784]
[1769797152665,0.93664531,2669.1,2667.2,0.01499784]
[1769797152870,0.93664531,2669.1,2667.4,0.01499784]
[1769797153700,0.93664531,2669.1,2667.8,0.01499784]
[1769797153900,0.93664531,2669.1,2667.8,0.01294797]
[1769797154102,0.93664531,2669.1,2667.6,0.01499784]
[1769797154410,0.46832266,2669.0,2667.7,0.01499784]
[1769797154610,0.93752852,2669.5,2667.9,0.01499784]
[1769797154802,0.001,2669.5,2668.1,0.01499784]
[1769797155003,0.001,2669.5,2668.5,0.01499784]
[1769797155476,0.001,2669.5,2668.1,0.01499784]
[1769797155681,0.001,2669.5,2668.3,0.01499784]
[1769797156409,0.001,2669.5,2668.7,0.01499784]
[1769797156615,0.001,2669.5,2668.9,0.01499784]
[1769797157416,0.001,2669.5,2668.7,0.01499784]
[1769797157614,0.001,2669.5,2667.5,0.01499784]
[1769797157810,0.001,2669.5,2668.3,0.01499784]
[1769797158044,0.001,2669.5,2668.5,0.01499784]
[1769797158240,0.001,2669.5,2668.1,0.01499784]
[1769797158602,0.001,2669.5,2668.3,0.01499784]
[1769797159100,0.001,2669.5,2667.2,13.57056397]
[1769797159299,0.001,2669.5,2667.6,0.01499784]
[1769797159609,0.001,2669.5,2667.7,0.01499784]
[1769797160509,0.001,2669.5,2667.9,0.01499784]
[1769797160901,0.001,2669.5,2668.1,0.01499784]
[1769797161210,0.001,2669.5,2667.7,0.01499784]
[1769797161406,2.247165,2669.4,2667.7,0.01499784]
[1769797161601,0.2248165,2669.3,2667.7,0.01499784]
[1769797161802,0.001,2669.5,2667.4,0.01499784]
[1769797162031,0.001,2669.5,2667.6,0.01499784]
[1769797162230,0.001,2669.5,2667.4,0.01499784]
[1769797162231,5.036512,2669.4,2667.4,0.01499784]
[1769797162404,0.01499784,2669.3,2666.8,0.01499784]
[1769797162603,10.012468,2669.2,2666.8,0.01499784]
[1769797162935,0.9367155,2668.9,2666.5,13.58556181]
[1769797163169,0.01499784,2668.8,2666.5,0.01499784]
[1769797163539,2.565714,2668.5,2666.3,0.95262403]
[1769797163743,0.9367155,2668.9,2666.7,0.01499784]
[1769797164229,3.409174,2668.8,2666.5,0.01499784]
[1769797164433,4.88792,2668.6,2666.3,0.01499784]
[1769797164640,0.01499784,2668.5,2666.3,0.01499784]
[1769797164845,3.488798,2668.4,2666.1,0.9526722]
[1769797165063,0.95192397,2668.3,2666.1,0.01499784]
[1769797165263,2.36389,2668.2,2666.1,0.93769771]
[1769797165562,0.3315814,2668.1,2666.1,0.93769547]
[1769797165765,0.95192397,2668.3,2666.1,0.95269217]
[1769797166061,0.01499784,2668.3,2666.1,0.95267017]
[1769797166264,0.9368958,2668.4,2666.1,0.95266917]
[1769797166471,0.93687838,2668.5,2666.5,0.01499784]
[1769797166665,0.01499784,2668.4,2666.1,14.52323314]
[1769797166840,0.93684668,2668.6,2666.7,0.01499784]
[1769797167033,0.43458895,2668.7,2666.7,0.95246042]
[1769797167265,0.93679612,2668.7,2666.9,0.01499784]
[1769797167647,0.93679612,2668.7,2666.4,0.01499784]
[1769797167846,0.93679612,2668.7,2666.5,0.93755649]
[1769797168048,0.01499784,2668.0,2665.4,13.57056397]
[1769797168263,0.01499784,2667.5,2665.5,0.93790485]
[1769797168470,0.00896542,2667.4,2665.6,1.45084688]
[1769797169178,8.55465523,2667.3,2665.6,1.45084688]
[1769797169342,0.00896542,2667.2,2665.6,0.93785476]
[1769797169537,0.00896542,2667.2,2665.9,0.01499784]
[1769797169759,0.00896542,2667.2,2665.0,13.57256397]
[1769797169936,0.00896542,2667.2,2665.1,0.95302502]
[1769797170144,0.00896542,2667.2,2665.6,0.93786302]
[1769797170364,0.00896542,2667.2,2665.5,0.93788528]
[1769797170669,0.00896542,2667.2,2665.6,0.93786392]
[1769797170972,0.00896542,2667.2,2665.6,0.93787419]
[1769797171162,0.94629263,2667.2,2665.5,0.47045625]
[1769797171362,0.94629263,2667.2,2665.3,3.75188661]
[1769797171363,0.01499784,2666.7,2665.0,0.002]
[1769797171538,0.01499784,2665.5,2663.9,0.002]
[1769797171743,0.01499784,2665.0,2663.9,0.002]
[1769797171945,0.00896542,2664.9,2663.9,0.002]
[1769797173674,0.01499784,2664.8,2663.9,0.002]
[1769797173845,0.00896542,2664.7,2662.7,13.57056397]
[1769797174044,0.00896542,2664.7,2662.8,14.50940033]
[1769797174253,0.00896542,2664.7,2662.8,14.50940699]
[1769797174449,0.01499784,2664.6,2662.8,13.57056397]
[1769797174648,0.01499784,2664.0,2662.2,0.93904837]
[1769797174957,0.02396326,2663.9,2662.3,1.45096123]
[1769797175172,0.00896542,2663.9,2662.5,13.57056397]
[1769797175358,0.94743935,2663.9,2662.5,13.57056397]
[1769797175580,0.94743935,2663.9,2662.8,0.002]
[1769797175880,0.01499784,2663.5,2662.0,0.83128249]
[1769797176092,0.00896542,2663.4,2662.0,0.83128249]
[1769797177192,0.93868508,2663.3,2662.0,0.83128249]
[1769797177476,0.01499784,2663.1,2662.0,0.79368207]
[1769797177697,0.01499784,2662.1,2660.9,0.02820638]
[1769797177848,0.01499784,2661.8,2660.6,0.52428304]
[1769797178047,0.00896542,2661.7,2660.6,0.52428304]
[1769797178446,0.01499784,2661.6,2660.6,0.52428304]
[1769797178645,0.01499784,2661.9,2660.6,0.50540994]
[1769797178646,0.00896542,2661.5,2660.6,0.50540994]
[1769797178879,0.01499784,2661.4,2660.6,0.50540994]
[1769797179182,0.00896542,2661.3,2660.6,0.46766374]
[1769797179483,0.00896542,2661.3,2660.6,0.38955241]
[1769797179701,0.19619057,2662.0,2660.6,0.38955241]
[1769797180187,0.19619057,2662.0,2660.6,1.32917941]
[1769797180391,0.01499784,2663.5,2660.6,15.22420812]
[1769797180551,0.01499784,2663.4,2661.0,13.89502871]
[1769797180907,0.01499784,2663.4,2660.9,0.01499784]
[1769797180908,0.01499784,2664.9,2661.6,13.91002655]
[1769797181185,0.95297855,2665.3,2662.5,0.93896713]
[1769797181398,0.01499784,2665.6,2662.9,13.89502871]
[1769797181548,0.01499784,2665.5,2663.1,13.89502871]
[1769797181758,0.01499784,2665.4,2663.3,13.89502871]
[1769797181980,0.95285815,2665.7,2663.3,13.91002655]
[1769797181981,0.01499784,2665.7,2663.3,13.91002655]
[1769797182146,0.01499784,2666.4,2663.8,13.89502871]
[1769797182347,0.01499784,2666.8,2664.2,13.89502871]
[1769797182549,0.01499784,2666.6,2664.4,13.89502871]
[1769797182857,0.01499784,2666.1,2664.5,1.46970266]
[1769797183057,0.01499784,2665.5,2663.7,13.89502871]
[1769797183363,0.01499784,2665.0,2663.2,2.25670266]
[1769797183575,0.01499784,2665.2,2663.2,3.19542244]
[1769797183809,3.75071535,2666.2,2663.6,13.89502871]
[1769797183810,0.01499784,2666.2,2663.6,13.89502871]
[1769797183956,13.21946843,2667.0,2663.5,0.01499784]
[1769797183957,0.01499784,2666.6,2664.0,13.89502871]
[1769797184293,0.01499784,2665.8,2664.0,13.89502871]
[1769797184481,0.01499784,2666.2,2664.0,13.89502871]
[1769797185156,0.01499784,2666.4,2664.0,13.89502871]
[1769797185479,0.01499784,2666.2,2664.1,14.83343192]
[1769797185663,0.01499784,2666.2,2664.2,1.72776887]
[1769797185982,0.95259288,2666.4,2664.2,1.72776887]
[1769797186181,0.01499784,2666.4,2664.2,15.62279758]
[1769797186355,0.01499784,2666.9,2664.2,15.62279758]
[1769797186356,0.9524194,2666.9,2664.4,13.89502871]
[1769797186558,0.01499784,2666.7,2664.5,15.79330459]